[Event "RUS-chTW Premier 2019"]
[Site "Sochi"]
[Date "2019.05.10"]
[Round "9.7"]
[White "Styazhkina, Anna"]
[Black "Tishova, Svetlana"]
[Result "1-0"]
[ECO "C07"]
[WhiteElo "2272"]
[BlackElo "2093"]
[Annotator "NA"]
[PlyCount "81"]
[EventDate "2019.05.01"]
[EventType "team-tourn"]
[EventCountry "RUS"]
[SourceTitle "playchess.com"]
[Source "ChessBase"]
[SourceQuality "1"]
[TimeControl "40/5400+30:1800+30"]

1. e4 {[%emt 0:00:00]} e6 {[%emt 0:00:00]} 2. d4 {[%emt 0:00:00]} d5 {[%emt 0:00:00]} 3. Nd2 {[%emt 0:00:00]} c5 {[%emt 0:00:00]} 4. dxc5 {[%emt 0:00:16]} Bxc5 {[%emt 0:00:45]} 5. Bd3 {[%emt 0:00:17]} Ne7 {[%emt 0:01:53]} 6. Qe2 {[%emt 0:02:40]} Nbc6 {[%emt 0:07:49]} 7. c3 {[%emt 0:00:35]} a6 {[%emt 0:05:28]} 8. a4 {[%emt 0:06:32]} O-O {[%emt 0:03:23]} 9. Ngf3 {[%emt 0:00:30]} Ng6 {[%emt 0:03:52]} 10. Nb3 {[%emt 0:00:33]} dxe4 {[%emt 0:02:59]} 11. Bxe4 {[%emt 0:01:01]} Bd6 {[%emt 0:01:49]} 12. O-O {[%emt 0:01:42]} Qc7 {[%emt 0:09:26]} 13. h4 {[%emt 0:08:40]} Nf4 {[%emt 0:06:46]} 14. Bxf4 {[%emt 0:03:36]} Bxf4 {[%emt 0:00:05]} 15. g3 {[%emt 0:00:36]} Bd6 {[%emt 0:00:56]} 16. Rad1 {[%emt 0:03:30]} f5 {[%emt 0:10:08]} (16... Rd8 $11) 17. Bd3 {[%emt 0:03:38]} ({White should play} 17. Bxc6 $1 $16 bxc6 18. Nbd2) 17... Rf6 {[%emt 0:03:05]} 18. Nbd4 {[%emt 0:06:27]} e5 $18 {[%emt 0:18:39]} (18... Bd7 $11 {and Black has nothing to worry.}) 19. Bc4+ {[%emt 0:02:59]} Kh8 {[%emt 0:08:33]} 20. Nxc6 {[%emt 0:03:14]} bxc6 {[%emt 0:00:06]} 21. Ng5 {[%emt 0:14:52]} Bf8 {[%emt 0:04:16]} 22. Ba2 {[%emt 0:03:58]} Bb7 {[%emt 0:08:37]} 23. Nxh7 {[%emt 0:11:44]} Rh6 {[%emt 0:01:06]} 24. Ng5 {[%emt 0:00:23]} c5 {[%emt 0:01:22]} 25. Nf7+ {[%emt 0:02:27]} Kh7 {[%emt 0:00:05]} 26. Nxh6 {[%emt 0:00:13]} Kxh6 {[%emt 0:00:30]} 27. Qc4 {[%emt 0:02:19]} Qc6 {[%emt 0:01:15]} 28. Qe6+ {[%emt 0:00:44]} g6 {[%emt 0:00:22]} 29. Qxc6 {[%emt 0:03:38]} Bxc6 {[%emt 0:00:02]} 30. Bd5 {[%emt 0:00:09]} Rc8 {[%emt 0:00:05]} 31. Bxc6 {[%emt 0:00:41]} Rxc6 {[%emt 0:00:02]} 32. Rd8 {[%emt 0:00:52]} Be7 {[%emt 0:00:09]} 33. Rd7 {[%emt 0:00:26]} Re6 {[%emt 0:00:26]} 34. Rfd1 {[%emt 0:00:44]} e4 {[%emt 0:01:28]} 35. Rb7 {[%emt 0:00:35]} Kh5 {[%emt 0:00:46]} 36. Kg2 {[%emt 0:01:19]} Kg4 {[%emt 0:00:54]} 37. a5 {[%emt 0:03:14]} f4 {[%emt 0:00:41]} 38. Rb6 {[%emt 0:01:55]} f3+ {[%emt 0:00:35]} 39. Kh2 {[%emt 0:00:20]} Rf6 {[%emt 0:00:29]} 40. Rd5 {[%emt 0:00:00]} Rxb6 {[%emt 0:00:00]} 41. axb6 {[%emt 0:00:50]} 1-0

[Event "RUS-chTW Premier 2019"]
[Site "Sochi"]
[Date "2019.05.10"]
[Round "9.8"]
[White "Ivanova, Karina"]
[Black "Balaian, Alina"]
[Result "0-1"]
[ECO "A00"]
[WhiteElo "2096"]
[BlackElo "2250"]
[Annotator "ChessBase"]
[PlyCount "122"]
[EventDate "2019.05.01"]
[EventType "team-tourn"]
[EventCountry "RUS"]
[SourceTitle "playchess.com"]
[Source "ChessBase"]
[SourceQuality "1"]
[TimeControl "40/5400+30:1800+30"]

1. g3 {[%emt 0:00:00]} Nf6 {[%emt 0:00:00]} 2. Bg2 {[%emt 0:00:00]} g6 {[%emt 0:00:13]} 3. d4 {[%emt 0:00:27]} d5 {[%emt 0:00:28]} 4. Nf3 {[%emt 0:00:44]} Bg7 {[%emt 0:00:05]} 5. O-O {[%emt 0:00:18]} O-O {[%emt 0:00:03]} 6. c4 {[%emt 0:00:09]} dxc4 {[%emt 0:00:04]} 7. Na3 {[%emt 0:00:06]} Na6 {[%emt 0:00:07]} 8. Nxc4 {[%emt 0:00:21]} c5 {[%emt 0:00:07]} 9. b3 {[%emt 0:07:10]} Be6 {[%emt 0:12:41]} 10. Bb2 {[%emt 0:00:49]} Bd5 {[%emt 0:00:32]} 11. Rc1 {[%emt 0:03:52]} Rc8 {[%emt 0:02:27]} 12. dxc5 {[%emt 0:10:43]} Nxc5 {[%emt 0:01:21]} 13. Ne3 {[%emt 0:02:34]} Be4 {[%emt 0:01:03]} 14. Qxd8 {[%emt 0:00:24]} Rfxd8 {[%emt 0:00:07]} 15. Rfd1 {[%emt 0:00:05]} Rxd1+ {[%emt 0:04:15]} 16. Nxd1 {[%emt 0:02:23]} Rd8 {[%emt 0:01:15]} 17. h4 {[%emt 0:01:29]} b6 {[%emt 0:04:57]} 18. Kf1 {[%emt 0:03:01]} Bh6 {[%emt 0:10:47]} 19. Ng5 {[%emt 0:01:10]} Bxg2+ {[%emt 0:04:39]} 20. Kxg2 {[%emt 0:00:06]} Ng4 {[%emt 0:00:10]} 21. Rb1 {[%emt 0:08:07]} f6 {[%emt 0:01:50]} 22. Nf3 {[%emt 0:00:35]} Ne4 {[%emt 0:08:58]} 23. Kf1 {[%emt 0:02:18]} e5 {[%emt 0:02:17]} 24. Ke1 {[%emt 0:03:15]} Kf7 {[%emt 0:07:00]} 25. e3 {[%emt 0:01:08]} Nc5 {[%emt 0:01:24]} 26. Ke2 {[%emt 0:00:35]} Nd3 {[%emt 0:01:30]} 27. Bc3 {[%emt 0:00:30]} Bf8 {[%emt 0:01:27]} 28. Nd2 {[%emt 0:00:39]} f5 {[%emt 0:04:10]} 29. f3 {[%emt 0:00:42]} Nf6 {[%emt 0:00:09]} 30. Nb2 {[%emt 0:01:45]} Nxb2 {[%emt 0:13:51]} 31. Rxb2 {[%emt 0:03:26]} Ke6 {[%emt 0:01:58]} 32. e4 {[%emt 0:00:46]} Rc8 {[%emt 0:03:37]} 33. Kd3 {[%emt 0:02:43]} Nh5 {[%emt 0:02:57]} 34. Nf1 {[%emt 0:00:40]} fxe4+ {[%emt 0:00:10]} 35. fxe4 {[%emt 0:00:08]} Rd8+ {[%emt 0:01:04]} 36. Ke2 {[%emt 0:02:03]} Nf6 {[%emt 0:00:14]} 37. Nd2 {[%emt 0:00:25]} Bh6 {[%emt 0:01:25]} 38. Nf3 {[%emt 0:00:21]} Nxe4 {[%emt 0:01:17]} 39. Bxe5 {[%emt 0:00:06]} Rd5 {[%emt 0:02:21]} 40. Bb8 {[%emt 0:00:00]} Nc3+ {[%emt 0:00:00]} 41. Kf1 {[%emt 0:01:21]} a6 {[%emt 0:14:57]} 42. Rc2 {[%emt 0:04:50]} Rd1+ {[%emt 0:00:42]} 43. Kg2 {[%emt 0:00:08]} Nd5 {[%emt 0:01:57]} 44. Re2+ {[%emt 0:02:32]} Ne3+ {[%emt 0:00:18]} 45. Kh2 {[%emt 0:00:41]} Kf5 {[%emt 0:00:42]} 46. Ba7 {[%emt 0:01:00]} Ke4 {[%emt 0:02:00]} 47. Ne1 {[%emt 0:01:41]} Rd6 {[%emt 0:00:05]} 48. g4 {[%emt 0:00:39]} Bf4+ {[%emt 0:02:49]} 49. Kh3 {[%emt 0:00:18]} g5 {[%emt 0:01:25]} 50. h5 {[%emt 0:04:44]} Rc6 {[%emt 0:00:28]} 51. a4 {[%emt 0:03:30]} a5 {[%emt 0:00:45]} 52. Ng2 {[%emt 0:01:33]} Kf3 {[%emt 0:01:31]} 53. Nxf4 {[%emt 0:00:20]} gxf4 {[%emt 0:01:01]} 54. Rd2 {[%emt 0:02:18]} Nxg4 {[%emt 0:00:29]} 55. Kh4 {[%emt 0:00:56]} h6 {[%emt 0:01:27]} 56. Rd3+ {[%emt 0:00:57]} Ne3 {[%emt 0:00:13]} 57. Kh3 {[%emt 0:01:11]} Rc5 {[%emt 0:01:03]} 58. Kh2 {[%emt 0:00:22]} Rxh5+ {[%emt 0:00:05]} 59. Kg1 {[%emt 0:00:03]} Rg5+ {[%emt 0:00:10]} 60. Kh2 {[%emt 0:00:16]} Kf2 {[%emt 0:00:46]} 61. Rd2+ {[%emt 0:00:16]} Kf1 {[%emt 0:00:10]} 0-1

[Event "RUS-chTW Premier 2019"]
[Site "Sochi"]
[Date "2019.05.10"]
[Round "9.9"]
[White "Schepetkova, Margarita"]
[Black "Shuvalova, Polina"]
[Result "1/2-1/2"]
[ECO "E01"]
[WhiteElo "2224"]
[BlackElo "2439"]
[Annotator "ChessBase"]
[PlyCount "110"]
[EventDate "2019.05.01"]
[EventType "team-tourn"]
[EventCountry "RUS"]
[SourceTitle "playchess.com"]
[Source "ChessBase"]
[SourceQuality "1"]
[TimeControl "40/5400+30:1800+30"]

1. d4 {[%emt 0:00:00]} Nf6 {[%emt 0:00:00]} 2. c4 {[%emt 0:00:00]} e6 {[%emt 0:00:00]} 3. g3 {[%emt 0:00:00]} d5 {[%emt 0:00:00]} 4. Bg2 {[%emt 0:00:03]} Bb4+ {[%emt 0:00:00]} 5. Nd2 {[%emt 0:00:35]} O-O {[%emt 0:00:00]} 6. Ngf3 {[%emt 0:00:15]} dxc4 {[%emt 0:00:00]} 7. Qc2 {[%emt 0:01:36]} a5 {[%emt 0:00:04]} 8. O-O {[%emt 0:09:12]} b5 {[%emt 0:00:27]} 9. a4 {[%emt 0:01:55]} c6 {[%emt 0:00:05]} 10. b3 {[%emt 0:12:42]} cxb3 {[%emt 0:03:49]} 11. Nxb3 {[%emt 0:00:19]} bxa4 {[%emt 0:02:40]} 12. Nc5 {[%emt 0:04:25]} Nbd7 {[%emt 0:04:34]} 13. Nd3 {[%emt 0:09:25]} Ba6 {[%emt 0:04:15]} 14. Nxb4 {[%emt 0:06:08]} axb4 {[%emt 0:00:05]} 15. Rxa4 {[%emt 0:00:24]} Nd5 {[%emt 0:02:58]} 16. Re1 {[%emt 0:06:14]} Qb6 {[%emt 0:08:44]} 17. Ng5 {[%emt 0:05:29]} g6 {[%emt 0:03:38]} 18. Bb2 {[%emt 0:07:19]} Qb5 {[%emt 0:09:48]} 19. Raa1 {[%emt 0:02:36]} N7b6 {[%emt 0:08:32]} 20. Qe4 {[%emt 0:01:51]} h6 {[%emt 0:01:50]} 21. Nf3 {[%emt 0:02:19]} Nc4 {[%emt 0:02:25]} 22. Bc1 {[%emt 0:00:21]} Kg7 {[%emt 0:00:16]} 23. Qh4 {[%emt 0:00:26]} Rh8 {[%emt 0:00:42]} 24. e4 {[%emt 0:04:25]} Nc3 {[%emt 0:01:15]} 25. d5 {[%emt 0:01:39]} cxd5 {[%emt 0:10:14]} 26. exd5 {[%emt 0:03:13]} Nxd5 {[%emt 0:03:14]} 27. Nd4 {[%emt 0:01:04]} Qd7 {[%emt 0:01:48]} 28. Bxd5 {[%emt 0:01:17]} Qxd5 {[%emt 0:06:46]} 29. Nxe6+ {[%emt 0:00:23]} fxe6 {[%emt 0:05:43]} 30. Qe7+ {[%emt 0:00:08]} Kg8 {[%emt 0:00:01]} 31. Rxe6 {[%emt 0:06:43]} Qd1+ {[%emt 0:02:50]} 32. Kg2 {[%emt 0:00:12]} Ne5 {[%emt 0:01:07]} 33. Rxg6+ {[%emt 0:11:54]} Nxg6 {[%emt 0:00:03]} 34. Qe6+ {[%emt 0:00:03]} Kf8 {[%emt 0:00:07]} 35. Bxh6+ {[%emt 0:00:09]} Rxh6 {[%emt 0:00:03]} 36. Qf5+ {[%emt 0:00:04]} Kg7 {[%emt 0:07:58]} 37. Rxd1 {[%emt 0:00:02]} Bb7+ {[%emt 0:01:24]} 38. Kg1 {[%emt 0:00:54]} Bc6 {[%emt 0:03:11]} 39. Rc1 {[%emt 0:01:55]} Rf8 {[%emt 0:00:36]} 40. Qg5 {[%emt 0:00:00]} Bd7 {[%emt 0:00:00]} 41. Rc7 {[%emt 0:03:31]} Rf7 {[%emt 0:01:48]} 42. h4 {[%emt 0:03:44]} b3 {[%emt 0:01:57]} 43. h5 {[%emt 0:05:02]} b2 {[%emt 0:00:20]} 44. Rb7 {[%emt 0:00:02]} Bc6 {[%emt 0:04:58]} 45. Rxf7+ {[%emt 0:05:47]} Kxf7 {[%emt 0:00:20]} 46. hxg6+ {[%emt 0:00:09]} Kg7 {[%emt 0:10:41]} 47. Qe7+ {[%emt 0:00:47]} Kxg6 {[%emt 0:00:05]} 48. Qe6+ {[%emt 0:01:39]} Kg7 {[%emt 0:00:05]} 49. Qe7+ {[%emt 0:00:17]} Kg8 {[%emt 0:02:43]} 50. Qd8+ {[%emt 0:00:19]} Kf7 {[%emt 0:00:32]} 51. Qc7+ {[%emt 0:00:08]} Ke8 {[%emt 0:00:44]} 52. Qc8+ {[%emt 0:00:09]} Ke7 {[%emt 0:00:03]} 53. Qc7+ {[%emt 0:00:10]} Ke8 {[%emt 0:00:07]} 54. Qc8+ {[%emt 0:00:20]} Ke7 {[%emt 0:00:04]} 55. Qc7+ {[%emt 0:00:11]} Ke8 {[%emt 0:00:05]} 1/2-1/2

[Event "RUS-chTW Premier 2019"]
[Site "Sochi"]
[Date "2019.05.10"]
[Round "9.10"]
[White "Kovalevskaya, Ekaterina"]
[Black "Trapeznikova, Darya"]
[Result "1-0"]
[ECO "C47"]
[WhiteElo "2413"]
[BlackElo "2090"]
[Annotator "NA"]
[PlyCount "55"]
[EventDate "2019.05.01"]
[EventType "team-tourn"]
[EventCountry "RUS"]
[SourceTitle "playchess.com"]
[Source "ChessBase"]
[SourceQuality "1"]
[TimeControl "40/5400+30:1800+30"]

1. e4 {[%emt 0:00:00]} e5 {[%emt 0:00:00]} 2. Nf3 {[%emt 0:00:00]} Nc6 {[%emt 0:00:00]} 3. Nc3 {[%emt 0:00:00]} Nf6 {[%emt 0:00:13]} 4. g3 {[%emt 0:00:00]} Be7 {[%emt 0:03:42]} 5. Bg2 {[%emt 0:01:29]} O-O {[%emt 0:00:44]} 6. O-O {[%emt 0:03:00]} d6 {[%emt 0:02:11]} 7. h3 {[%emt 0:00:35]} h6 {[%emt 0:01:39]} 8. d4 {[%emt 0:00:52]} exd4 {[%emt 0:09:23]} 9. Nxd4 {[%emt 0:00:08]} Nxd4 {[%emt 0:00:46]} 10. Qxd4 {[%emt 0:00:07]} Re8 {[%emt 0:01:30]} 11. b3 {[%emt 0:14:37]} Be6 {[%emt 0:15:35]} 12. Bb2 {[%emt 0:02:32]} c6 {[%emt 0:02:48]} 13. Rad1 {[%emt 0:08:01]} Qc7 {[%emt 0:04:43]} 14. f4 {[%emt 0:20:51]} Qb6 {[%emt 0:18:08]} 15. Qxb6 {[%emt 0:01:42]} axb6 {[%emt 0:00:04]} 16. a4 {[%emt 0:00:05]} Rad8 {[%emt 0:15:53]} 17. Kh2 {[%emt 0:00:35]} Bd7 {[%emt 0:02:04]} 18. Rf2 {[%emt 0:17:44]} Nh7 $16 {[%emt 0:05:48]} 19. Rfd2 {[%emt 0:09:28]} f5 {[%emt 0:05:59]} 20. e5 {[%emt 0:05:28]} d5 {[%emt 0:00:08]} 21. Bxd5+ {[%emt 0:05:59]} cxd5 {[%emt 0:00:23]} 22. Nxd5 {[%emt 0:00:02]} Kf7 {[%emt 0:06:42]} 23. Nxe7 {[%emt 0:01:15]} Kxe7 {[%emt 0:00:38]} 24. Ba3+ {[%emt 0:00:08]} Ke6 {[%emt 0:00:05]} 25. Rd6+ {[%emt 0:00:09]} Kf7 {[%emt 0:00:04]} 26. Rxd7+ {[%emt 0:00:12]} Rxd7 {[%emt 0:00:02]} 27. Rxd7+ {[%emt 0:00:06]} Kg8 {[%emt 0:01:21]} 28. Rxb7 {[%emt 0:00:18]} 1-0

[Event "RUS-chTW Premier 2019"]
[Site "Sochi"]
[Date "2019.05.10"]
[Round "9.11"]
[White "Chan, Naruna"]
[Black "Bivol, Alina"]
[Result "0-1"]
[ECO "C08"]
[WhiteElo "1985"]
[BlackElo "2393"]
[Annotator "NA"]
[PlyCount "74"]
[EventDate "2019.05.01"]
[EventType "team-tourn"]
[EventCountry "RUS"]
[SourceTitle "playchess.com"]
[Source "ChessBase"]
[SourceQuality "1"]
[TimeControl "40/5400+30:1800+30"]

1. e4 {[%emt 0:00:00]} e6 {[%emt 0:00:00]} 2. d4 {[%emt 0:00:00]} d5 {[%emt 0:00:00]} 3. Nd2 {[%emt 0:00:00]} c5 {[%emt 0:00:33]} 4. exd5 {[%emt 0:00:09]} exd5 {[%emt 0:00:07]} 5. Ngf3 {[%emt 0:01:34]} Nf6 {[%emt 0:01:13]} 6. Bb5+ {[%emt 0:00:13]} Bd7 {[%emt 0:00:05]} 7. Bxd7+ {[%emt 0:00:31]} Nbxd7 {[%emt 0:00:01]} 8. O-O {[%emt 0:01:27]} Be7 {[%emt 0:00:03]} 9. Re1 {[%emt 0:11:46]} O-O {[%emt 0:00:20]} 10. dxc5 {[%emt 0:11:14]} Nxc5 {[%emt 0:00:12]} 11. Nb3 {[%emt 0:01:41] C08: French Tarrasch: 3...c5 4 exd5 exd5 sidelines} (11. Nf1 Re8 12. Be3 Qd7 13. c3 a5 14. Bd4 Rac8 15. Ne3 Nfe4 16. Ne5 Qd8 17. Qh5 g6 18. Qf3 f5 19. Nxf5 gxf5 20. Qxf5 {½-½ (91) Rublevsky,S (2683)-Savchenko,B (2585) Sochi 2017}) 11... Nce4 {[%emt 0:00:05]} 12. h3 {[%emt 0:00:39]} Re8 {[%emt 0:02:34]} 13. Be3 {[%emt 0:01:00]} Qd7 {[%emt 0:03:26]} 14. c3 {[%emt 0:03:44]} b5 $146 {[%emt 0:00:14]} ({Predecessor:} 14... Bd6 15. Qd3 Qa4 16. Nfd4 Rad8 17. Qb5 Qxb5 18. Nxb5 {0-1 (40) Bergsson,S (2192)-Avalyan,A (2315) Paracin 2018}) 15. Qd3 {[%emt 0:02:49]} a5 {[%emt 0:02:06]} 16. Red1 {[%emt 0:12:06]} Qb7 {[%emt 0:02:40]} 17. Nbd4 {[%emt 0:04:15]} b4 {[%emt 0:02:33]} 18. cxb4 {[%emt 0:01:33]} axb4 {[%emt 0:01:43]} 19. Nf5 {[%emt 0:10:06]} Bc5 {[%emt 0:04:17]} 20. Bxc5 {[%emt 0:01:15]} Nxc5 {[%emt 0:00:01]} 21. Qd4 {[%emt 0:00:14]} Ne6 {[%emt 0:02:34]} 22. Qh4 {[%emt 0:00:54]} Qb6 {[%emt 0:01:08]} 23. Nh6+ {[%emt 0:01:10]} (23. Ne5 $5 {[%cal Rf5h6]} Nf8 24. Ng4 Nxg4 25. Qxg4 $14) 23... Kf8 {[%emt 0:03:23]} 24. Ng4 {[%emt 0:07:19]} Nxg4 {[%emt 0:02:17]} 25. hxg4 {[%emt 0:00:27]} Kg8 {[%emt 0:01:55]} 26. Rxd5 {[%emt 0:00:26]} Nf4 {[%emt 0:00:22]} 27. Rd2 {[%emt 0:01:58]} Ng6 {[%emt 0:04:00]} 28. Qh2 {[%emt 0:06:06]} Red8 {[%emt 0:04:13]} 29. Qg3 {[%emt 0:06:51]} Rxd2 {[%emt 0:01:08]} 30. Nxd2 {[%emt 0:00:04]} Qd4 {[%emt 0:00:09]} 31. Qf3 {[%emt 0:09:19]} Re8 {[%emt 0:05:04]} 32. Nb3 {[%emt 0:03:06]} Qxb2 {[%emt 0:00:19]} 33. Qd1 {[%emt 0:01:23]} Nf4 {[%emt 0:02:01]} 34. Qd2 {[%emt 0:00:41]} Ne2+ {[%emt 0:03:00]} 35. Kf1 {[%emt 0:00:54]} Qe5 {[%emt 0:00:41]} 36. f3 $19 {[%emt 0:00:30]} (36. Qd7 {is a better defense.}) 36... Qh2 {[%emt 0:01:03]} 37. Kf2 {[%emt 0:00:26]} Nf4 {[%emt 0:00:44]} 0-1

[Event "RUS-chTW Premier 2019"]
[Site "Sochi"]
[Date "2019.05.10"]
[Round "9.12"]
[White "Voit, Daria"]
[Black "Azimova, Karina"]
[Result "1/2-1/2"]
[ECO "A21"]
[WhiteElo "2340"]
[BlackElo "2072"]
[Annotator "NA"]
[PlyCount "77"]
[EventDate "2019.05.01"]
[EventType "team-tourn"]
[EventCountry "RUS"]
[SourceTitle "playchess.com"]
[Source "ChessBase"]
[SourceQuality "1"]
[TimeControl "40/5400+30:1800+30"]

1. c4 {[%emt 0:00:00]} d6 {[%emt 0:01:48]} 2. Nc3 {[%emt 0:00:39]} e5 {[%emt 0:03:47]} 3. Nf3 {[%emt 0:00:08]} f5 {[%emt 0:01:37]} 4. d4 {[%emt 0:00:07]} e4 {[%emt 0:00:56]} 5. Ng5 {[%emt 0:00:06]} Be7 {[%emt 0:06:38]} 6. Nh3 {[%emt 0:00:04]} Nf6 {[%emt 0:00:42]} 7. e3 {[%emt 0:04:24]} c6 {[%emt 0:03:18]} 8. Be2 {[%emt 0:00:22]} O-O {[%emt 0:04:37]} 9. O-O {[%emt 0:00:09]} Kh8 {[%emt 0:03:32]} 10. d5 {[%emt 0:10:05]} Nbd7 {[%emt 0:03:24]} 11. b3 {[%emt 0:03:18]} Ne5 {[%emt 0:04:11]} 12. Bb2 {[%emt 0:00:29]} Qe8 {[%emt 0:03:11]} 13. dxc6 {[%emt 0:10:11]} bxc6 {[%emt 0:01:46]} 14. Ba3 {[%emt 0:00:18]} Qg6 {[%emt 0:07:29]} (14... Be6 $11) 15. Bxd6 {[%emt 0:14:11]} Rd8 {[%emt 0:00:25]} 16. c5 {[%emt 0:00:18]} Nf7 $16 {[%emt 0:06:34]} 17. Nf4 {[%emt 0:23:53]} Qh6 {[%emt 0:00:27]} 18. Bxe7 {[%emt 0:00:57]} Rxd1 {[%emt 0:00:05]} 19. Raxd1 {[%emt 0:00:22]} g5 {[%emt 0:06:57]} 20. Bc4 {[%emt 0:03:16]} Kg7 {[%emt 0:08:08]} 21. Nh3 {[%emt 0:06:38]} a5 {[%emt 0:06:35]} 22. Rd4 {[%emt 0:05:11]} Ra7 {[%emt 0:01:50]} 23. Bxf6+ {[%emt 0:03:37]} Qxf6 {[%emt 0:00:12]} 24. Rfd1 {[%emt 0:00:30]} Be6 {[%emt 0:02:13]} 25. Bxe6 {[%emt 0:02:27]} Qxe6 {[%emt 0:00:01]} 26. Na4 {[%emt 0:00:26]} Qe7 {[%emt 0:01:39]} 27. Kf1 {[%emt 0:00:32]} h6 {[%emt 0:01:33]} 28. Ng1 {[%emt 0:00:02]} Qe5 {[%emt 0:06:25]} 29. h3 {[%emt 0:01:17]} Re7 {[%emt 0:01:11]} 30. Ne2 {[%emt 0:00:21]} f4 {[%emt 0:01:19]} 31. Kg1 {[%emt 0:01:14]} Qf5 {[%emt 0:01:51]} 32. Nac3 {[%emt 0:01:33]} h5 {[%emt 0:00:50]} 33. Rc4 {[%emt 0:02:47]} h4 {[%emt 0:02:08]} 34. Nd4 {[%emt 0:01:04]} Qc8 {[%emt 0:00:01]} 35. Nc2 {[%emt 0:00:24]} Qf5 {[%emt 0:00:48]} 36. Nd4 {[%emt 0:00:55]} Qc8 {[%emt 0:00:02]} 37. Nc2 {[%emt 0:00:09]} Qf5 {[%emt 0:00:16]} 38. Nd4 {[%emt 0:00:02]} Qc8 {[%emt 0:00:04]} 39. Nc2 {[%emt 0:00:07]} 1/2-1/2

[Event "RUS-chTW Premier 2019"]
[Site "Sochi"]
[Date "2019.05.10"]
[Round "9.13"]
[White "Loskutova, Viktoriya"]
[Black "Badelka, Olga"]
[Result "0-1"]
[ECO "B32"]
[WhiteElo "2096"]
[BlackElo "2383"]
[Annotator "NA"]
[PlyCount "76"]
[EventDate "2019.05.01"]
[EventType "team-tourn"]
[EventCountry "RUS"]
[SourceTitle "playchess.com"]
[Source "ChessBase"]
[SourceQuality "1"]
[TimeControl "40/5400+30:1800+30"]

1. e4 {[%emt 0:00:00]} c5 {[%emt 0:00:00]} 2. Nf3 {[%emt 0:00:00]} Nc6 {[%emt 0:00:00]} 3. d4 {[%emt 0:00:00]} cxd4 {[%emt 0:00:00]} 4. Nxd4 {[%emt 0:00:00]} e5 {[%emt 0:00:00]} 5. Nb5 {[%emt 0:00:00]} d6 {[%emt 0:00:00]} 6. c4 {[%emt 0:00:00]} Be7 {[%emt 0:00:10]} 7. N1c3 {[%emt 0:00:00]} a6 {[%emt 0:00:05]} 8. Na3 {[%emt 0:00:00]} f5 {[%emt 0:00:35]} 9. exf5 {[%emt 0:00:04]} Bxf5 {[%emt 0:00:04]} 10. Bd3 {[%emt 0:00:06]} Be6 {[%emt 0:00:03]} 11. Nc2 {[%emt 0:00:18]} Nf6 {[%emt 0:00:51] B32: Sicilian: Löwenthal and Kalashnikov Variations} 12. O-O {[%emt 0:00:06]} Qd7 {[%emt 0:00:46]} (12... O-O 13. b3 Qd7 14. Bb2 Bd8 15. Ne4 Bb6 16. Qe2 Rad8 17. Kh1 Nxe4 18. Bxe4 {½-½ (50) Yu,Y (2764)-Potapov,P (2516) St Petersburg 2018}) 13. Ne3 {[%emt 0:05:33]} O-O {[%emt 0:00:41]} 14. Ncd5 {[%emt 0:03:42]} Bd8 {[%emt 0:00:54]} 15. b3 {[%emt 0:01:20]} Nd4 {[%emt 0:11:55]} 16. Bb2 {[%emt 0:14:17]} Nxd5 {[%emt 0:02:47]} 17. cxd5 {[%emt 0:17:57]} Bf7 {[%emt 0:00:08]} 18. Nc2 $146 {[%emt 0:09:37]} ({Predecessor:} 18. Bxd4 exd4 19. Bf5 {0-1 (39) Isaev,J (2440)-Fedorov,A (2564) Bled 2002}) 18... Nxc2 {[%emt 0:15:17]} 19. Qxc2 {[%emt 0:01:36]} h6 {[%emt 0:00:21]} 20. Be4 {[%emt 0:07:32]} Bb6 {[%emt 0:02:04]} 21. Kh1 {[%emt 0:08:50]} Qg4 {[%emt 0:02:32]} 22. Qd3 {[%emt 0:08:21]} Be8 {[%emt 0:06:20]} 23. a4 {[%emt 0:04:07]} Bd7 {[%emt 0:02:24]} 24. f3 {[%emt 0:02:21]} Qh4 {[%emt 0:00:25]} 25. Bc3 {[%emt 0:00:22]} Rac8 {[%emt 0:01:44]} 26. Be1 {[%emt 0:03:10]} Qf6 $11 {[%emt 0:03:48]} 27. Bd2 {[%emt 0:02:53]} Bc5 {[%emt 0:09:20]} 28. Rfc1 {[%emt 0:06:17]} g5 {[%emt 0:03:05]} 29. Be3 {[%emt 0:01:54]} Bxe3 {[%emt 0:02:05]} 30. Qxe3 {[%emt 0:00:02]} Qf4 {[%emt 0:00:17]} 31. Qxf4 {[%emt 0:00:33]} exf4 {[%emt 0:01:08]} 32. Kg1 {[%emt 0:00:12]} Kf7 {[%emt 0:02:58]} 33. Kf2 {[%emt 0:00:26]} Kf6 {[%emt 0:02:01]} 34. Ke2 {[%emt 0:01:45]} Rxc1 {[%emt 0:00:39]} 35. Rxc1 {[%emt 0:00:01]} Rc8 {[%emt 0:00:05]} 36. Rb1 {[%emt 0:02:56]} b5 {[%emt 0:02:26]} 37. axb5 {[%emt 0:01:10]} Bxb5+ {[%emt 0:00:12]} 38. Bd3 {[%emt 0:00:49]} Rc2+ {[%emt 0:00:13]} 0-1